[Event "69th RUS-ch Women Higher League 2019"]
[Site "Yaroslavl"]
[Date "2019.06.30"]
[Round "4.14"]
[White "Belenkaya, Dina"]
[Black "Markelova, Lubov"]
[Result "1-0"]
[ECO "C11"]
[WhiteElo "2321"]
[BlackElo "2186"]
[Annotator "NA"]
[PlyCount "105"]
[EventDate "2019.06.27"]
[EventType "swiss"]
[EventCountry "RUS"]
[SourceTitle "playchess.com"]
[Source "ChessBase"]
[SourceQuality "1"]
[TimeControl "40/5400+30:1800+30"]

1. e4 {[%emt 0:00:00]} e6 {[%emt 0:00:00]} 2. d4 {[%emt 0:00:00]} d5 {[%emt 0:00:00]} 3. Nc3 {[%emt 0:00:00]} Nf6 {[%emt 0:00:00]} 4. e5 {[%emt 0:00:07]} Nfd7 {[%emt 0:00:03]} 5. Nce2 {[%emt 0:00:09]} c5 {[%emt 0:00:30]} 6. c3 {[%emt 0:00:09]} Nc6 {[%emt 0:01:03]} 7. Nf3 {[%emt 0:00:20]} Be7 {[%emt 0:01:02]} 8. a3 {[%emt 0:02:34]} O-O {[%emt 0:01:34]} 9. Nf4 {[%emt 0:02:47]} Qa5 {[%emt 0:01:29]} 10. Be3 {[%emt 0:11:21]} Nxd4 {[%emt 0:02:12]} 11. Nxd4 {[%emt 0:02:24]} cxd4 {[%emt 0:00:07]} 12. Bxd4 {[%emt 0:00:43]} Qc7 {[%emt 0:00:24]} 13. Qh5 {[%emt 0:04:37]} g6 {[%emt 0:16:59]} 14. Qe2 {[%emt 0:00:26]} Nc5 {[%emt 0:05:27]} 15. h4 {[%emt 0:01:40]} Nb3 {[%emt 0:11:12]} 16. Rd1 {[%emt 0:00:54]} Nxd4 {[%emt 0:01:20]} 17. cxd4 {[%emt 0:05:30]} Bd7 {[%emt 0:08:42]} 18. h5 {[%emt 0:03:20]} Qa5+ {[%emt 0:06:33]} 19. Rd2 {[%emt 0:01:35]} Rac8 {[%emt 0:01:34]} 20. Nd3 {[%emt 0:02:15]} Bb5 {[%emt 0:17:19]} 21. f4 {[%emt 0:06:26]} Rc4 {[%emt 0:04:45]} 22. Qe3 {[%emt 0:02:39]} Qb6 {[%emt 0:03:46]} 23. Nf2 {[%emt 0:05:52]} Rc1+ {[%emt 0:02:22]} 24. Nd1 {[%emt 0:00:39]} Bxf1 {[%emt 0:05:20]} 25. Kxf1 {[%emt 0:03:21]} Qa6+ {[%emt 0:02:44]} 26. Kf2 {[%emt 0:02:17]} Qc6 {[%emt 0:01:03]} 27. g4 {[%emt 0:09:58]} Rc2 {[%emt 0:02:58]} 28. Nc3 {[%emt 0:01:31]} Rxd2+ {[%emt 0:00:28]} 29. Qxd2 {[%emt 0:00:02]} b5 {[%emt 0:02:41]} 30. f5 {[%emt 0:04:48]} exf5 {[%emt 0:00:24]} 31. gxf5 {[%emt 0:00:50]} Qd7 {[%emt 0:00:51]} 32. f6 {[%emt 0:04:55]} Qf5+ {[%emt 0:00:19]} 33. Ke1 {[%emt 0:11:22]} Bxf6 {[%emt 0:00:22]} 34. exf6 Re8+ {[%emt 0:00:03]} 35. Ne2 {[%emt 0:06:14]} Qb1+ {[%emt 0:00:26]} 36. Qd1 {[%emt 0:00:14]} Qxb2 {[%emt 0:00:48]} 37. Rh3 {[%emt 0:01:20]} b4 {[%emt 0:00:58]} 38. Rb3 {[%emt 0:02:10]} Qa2 {[%emt 0:00:08]} 39. axb4 {[%emt 0:00:39]} Qa6 {[%emt 0:00:10]} 40. Rf3 {[%emt 0:00:00]} Qc4 {[%emt 0:00:00]} 41. Qd2 {[%emt 0:02:24]} Qa6 {[%emt 0:05:28]} 42. Kf2 {[%emt 0:07:41]} Re6 {[%emt 0:01:15]} 43. h6 {[%emt 0:04:04]} Qd6 {[%emt 0:02:51]} 44. Qf4 {[%emt 0:05:46]} Qxb4 {[%emt 0:02:06]} 45. Re3 {[%emt 0:00:38]} Qb1 {[%emt 0:02:24]} 46. Qf3 {[%emt 0:08:41]} Kf8 {[%emt 0:08:42]} 47. Rb3 {[%emt 0:02:13]} Qf5 {[%emt 0:04:01]} 48. Qxf5 {[%emt 0:01:20]} gxf5 {[%emt 0:00:07]} 49. Nf4 {[%emt 0:00:26]} Re4 {[%emt 0:01:42]} 50. Rb8+ {[%emt 0:00:55]} Re8 {[%emt 0:00:04]} 51. Rb7 {[%emt 0:00:26]} Ra8 52. Nxd5 {[%emt 0:00:15]} a5 {[%emt 0:00:39]} 53. Nc7 {[%emt 0:00:18]} 1-0

[Event "69th RUS-ch Women Higher League 2019"]
[Site "Yaroslavl"]
[Date "2019.06.30"]
[Round "4.15"]
[White "Utiatskaja, Irina"]
[Black "Goltseva, Ekaterina"]
[Result "0-1"]
[ECO "A06"]
[WhiteElo "2192"]
[BlackElo "2304"]
[Annotator "NA"]
[PlyCount "74"]
[EventDate "2019.06.27"]
[EventType "swiss"]
[EventCountry "RUS"]
[SourceTitle "playchess.com"]
[Source "ChessBase"]
[SourceQuality "1"]
[TimeControl "40/5400+30:1800+30"]

1. Nf3 {[%emt 0:00:00]} Nf6 {[%emt 0:00:00]} 2. e3 {[%emt 0:00:20]} d5 {[%emt 0:02:50]} 3. c4 {[%emt 0:00:18]} e6 {[%emt 0:04:29]} 4. b3 {[%emt 0:03:11]} c5 {[%emt 0:02:40]} 5. Bb2 {[%emt 0:00:46]} Nc6 {[%emt 0:00:54]} 6. cxd5 {[%emt 0:03:40]} exd5 {[%emt 0:01:31]} 7. d4 {[%emt 0:07:12]} cxd4 {[%emt 0:04:01]} 8. Nxd4 {[%emt 0:04:05]} Bb4+ {[%emt 0:01:51]} 9. Bc3 {[%emt 0:04:32]} Bd6 {[%emt 0:14:45]} 10. Be2 {[%emt 0:11:10]} O-O {[%emt 0:11:01]} 11. O-O {[%emt 0:08:54]} Ne4 {[%emt 0:04:36]} 12. Nf3 {[%emt 0:15:09]} Bg4 {[%emt 0:06:09]} 13. Bb2 {[%emt 0:01:09]} Qa5 {[%emt 0:06:48]} 14. a3 {[%emt 0:13:42]} Rfd8 {[%emt 0:03:44]} 15. b4 {[%emt 0:00:06]} Qc7 {[%emt 0:00:15]} 16. Nbd2 {[%emt 0:00:16]} Nxd2 {[%emt 0:01:07]} 17. Qxd2 {[%emt 0:00:39]} Bxf3 {[%emt 0:00:22]} 18. Bxf3 {[%emt 0:00:05]} Bxh2+ {[%emt 0:00:17]} 19. Kh1 {[%emt 0:00:03]} Be5 {[%emt 0:08:06]} 20. Rfd1 {[%emt 0:01:02]} Rd6 {[%emt 0:17:38]} 21. Bxe5 {[%emt 0:07:01]} Nxe5 {[%emt 0:00:20]} 22. Bxd5 {[%emt 0:00:28]} Rad8 {[%emt 0:00:39]} 23. e4 {[%emt 0:00:24]} Ng4 {[%emt 0:02:16]} 24. g3 {[%emt 0:05:22]} Qb6 {[%emt 0:03:59]} 25. Kg2 {[%emt 0:02:33]} Rf6 {[%emt 0:00:36]} 26. Rf1 {[%emt 0:00:12]} Rc8 {[%emt 0:01:08]} 27. Ra2 {[%emt 0:02:48]} Rh6 {[%emt 0:00:24]} 28. Rh1 {[%emt 0:04:08]} Rxh1 {[%emt 0:00:23]} 29. Kxh1 {[%emt 0:00:04]} Qg6 {[%emt 0:00:55]} 30. f3 {[%emt 0:01:56]} Qh5+ {[%emt 0:00:39]} 31. Kg2 {[%emt 0:02:20]} Qh2+ {[%emt 0:00:10]} 32. Kf1 {[%emt 0:00:03]} Qh1+ {[%emt 0:00:47]} 33. Ke2 {[%emt 0:00:08]} Qg2+ {[%emt 0:00:10]} 34. Kd3 {[%emt 0:01:27]} Qxf3+ {[%emt 0:00:27]} 35. Kd4 {[%emt 0:00:19]} Qf6+ {[%emt 0:00:35]} 36. Kd3 {[%emt 0:00:05]} Ne5+ {[%emt 0:00:44]} 37. Ke2 {[%emt 0:00:05]} Qf3+ {[%emt 0:00:08]} 0-1

[Event "69th RUS-ch Women Higher League 2019"]
[Site "Yaroslavl"]
[Date "2019.06.30"]
[Round "4.16"]
[White "Afonasieva, Anna"]
[Black "Nosacheva, Mariya"]
[Result "0-1"]
[ECO "A48"]
[WhiteElo "2303"]
[BlackElo "2150"]
[Annotator "NA"]
[PlyCount "104"]
[EventDate "2019.06.27"]
[EventType "swiss"]
[EventCountry "RUS"]
[SourceTitle "playchess.com"]
[Source "ChessBase"]
[SourceQuality "1"]
[TimeControl "40/5400+30:1800+30"]

1. d4 {[%emt 0:00:00]} Nf6 {[%emt 0:00:00]} 2. Nf3 {[%emt 0:00:00]} g6 {[%emt 0:00:00]} 3. c4 {[%emt 0:00:00]} Bg7 {[%emt 0:00:00]} 4. g3 {[%emt 0:00:00]} O-O {[%emt 0:00:00]} 5. Bg2 {[%emt 0:00:00]} d6 {[%emt 0:00:02]} 6. O-O {[%emt 0:00:00]} Nbd7 {[%emt 0:00:18]} 7. Qc2 {[%emt 0:00:00]} e5 {[%emt 0:00:07]} 8. Rd1 {[%emt 0:00:05]} Re8 {[%emt 0:00:11]} 9. Nc3 {[%emt 0:00:12]} c6 {[%emt 0:00:07]} 10. e4 {[%emt 0:00:32]} Qe7 {[%emt 0:00:41]} 11. h3 {[%emt 0:01:23]} exd4 {[%emt 0:01:05]} 12. Nxd4 {[%emt 0:00:07]} Nc5 {[%emt 0:00:12]} 13. f3 {[%emt 0:04:10]} a5 {[%emt 0:00:06]} 14. Be3 {[%emt 0:00:44]} Nfd7 {[%emt 0:00:06]} 15. Bf2 {[%emt 0:01:17]} Ne5 {[%emt 0:01:11]} 16. b3 {[%emt 0:01:47]} a4 {[%emt 0:02:52]} 17. Rab1 {[%emt 0:05:27]} axb3 {[%emt 0:11:30]} 18. axb3 {[%emt 0:00:06]} Ra3 {[%emt 0:05:05]} 19. f4 {[%emt 0:07:57]} Ned7 {[%emt 0:03:48]} 20. Nde2 {[%emt 0:01:04]} Nb6 {[%emt 0:15:42]} 21. Rd2 {[%emt 0:04:55]} Be6 {[%emt 0:16:05]} 22. Rbd1 {[%emt 0:03:19]} Rxb3 {[%emt 0:04:50]} 23. Bxc5 {[%emt 0:00:39]} Rxc3 {[%emt 0:02:16]} 24. Nxc3 {[%emt 0:00:45]} dxc5 {[%emt 0:00:00]} 25. e5 {[%emt 0:05:14]} Nxc4 {[%emt 0:02:13]} 26. Rd3 {[%emt 0:00:16]} f5 {[%emt 0:01:47]} 27. Na4 {[%emt 0:06:06]} Rc8 {[%emt 0:02:07]} 28. Nb2 {[%emt 0:04:28]} Nxb2 {[%emt 0:09:19]} 29. Qxb2 {[%emt 0:00:06]} Bf8 {[%emt 0:01:44]} 30. Qb6 {[%emt 0:07:19]} c4 {[%emt 0:00:26]} 31. Rd6 {[%emt 0:00:18]} Kf7 {[%emt 0:01:34]} 32. Bf1 {[%emt 0:21:10]} Qc7 {[%emt 0:00:55]} 33. Qd4 {[%emt 0:01:35]} Bxd6 {[%emt 0:04:07]} 34. exd6 {[%emt 0:00:27]} Qd7 {[%emt 0:01:18]} 35. Bxc4 {[%emt 0:01:29]} Bxc4 {[%emt 0:01:30]} 36. Qxc4+ {[%emt 0:00:07]} Qe6 {[%emt 0:00:05]} 37. Qc5 {[%emt 0:02:17]} Rd8 {[%emt 0:02:05]} 38. Qd4 {[%emt 0:02:58]} Rd7 {[%emt 0:02:33]} 39. Rd2 {[%emt 0:05:53]} c5 {[%emt 0:04:35]} 40. Qb2 {[%emt 0:00:00]} b6 {[%emt 0:00:00]} 41. Kh2 {[%emt 0:13:10]} Rxd6 {[%emt 0:05:30]} 42. Re2 {[%emt 0:00:26]} Qf6 {[%emt 0:06:44]} 43. Qa2+ {[%emt 0:01:42]} Kg7 {[%emt 0:02:16]} 44. h4 {[%emt 0:03:10]} Kh6 {[%emt 0:02:14]} 45. h5 {[%emt 0:08:51]} Kxh5 {[%emt 0:01:28]} 46. Qa7 {[%emt 0:03:01]} h6 {[%emt 0:03:43]} 47. Re5 {[%emt 0:10:54]} Rd2+ {[%emt 0:02:42]} 48. Kh3 {[%emt 0:02:02]} Rd3 {[%emt 0:00:05]} 49. Kh2 {[%emt 0:02:15]} Kg4 {[%emt 0:05:09]} 50. Qa2 {[%emt 0:01:04]} Rxg3 {[%emt 0:01:37]} 51. Qe2+ {[%emt 0:00:33]} Kxf4 {[%emt 0:00:06]} 52. Qf2+ {[%emt 0:02:10]} Rf3 {[%emt 0:02:20]} 0-1

[Event "69th RUS-ch Women Higher League 2019"]
[Site "Yaroslavl"]
[Date "2019.06.30"]
[Round "4.17"]
[White "Bykova, Anastasia"]
[Black "Schepetkova, Margarita"]
[Result "1/2-1/2"]
[ECO "B12"]
[WhiteElo "2229"]
[BlackElo "2241"]
[Annotator "NA"]
[PlyCount "74"]
[EventDate "2019.06.27"]
[EventType "swiss"]
[EventCountry "RUS"]
[SourceTitle "playchess.com"]
[Source "ChessBase"]
[SourceQuality "1"]
[TimeControl "40/5400+30:1800+30"]

1. e4 {[%emt 0:00:00]} c6 {[%emt 0:00:00]} 2. d4 {[%emt 0:00:00]} d5 {[%emt 0:00:00]} 3. e5 {[%emt 0:00:00]} Bf5 {[%emt 0:00:01]} 4. Nd2 {[%emt 0:04:58]} e6 {[%emt 0:00:31]} 5. Nb3 {[%emt 0:00:06]} Nd7 {[%emt 0:01:10]} 6. Nf3 {[%emt 0:00:30]} Ne7 {[%emt 0:05:41]} 7. Be2 {[%emt 0:00:11]} h6 {[%emt 0:10:37]} 8. O-O {[%emt 0:00:09]} g5 {[%emt 0:00:09]} 9. Ne1 {[%emt 0:00:16]} Qc7 {[%emt 0:05:37]} 10. Nd3 {[%emt 0:00:23]} Bg7 {[%emt 0:05:48]} 11. f4 {[%emt 0:04:19]} O-O-O {[%emt 0:00:31]} 12. g4 {[%emt 0:29:32]} Bg6 {[%emt 0:07:32]} 13. fxg5 {[%emt 0:21:33]} hxg5 {[%emt 0:02:34]} 14. Bxg5 {[%emt 0:00:04]} f6 {[%emt 0:11:03]} 15. Ndc5 {[%emt 0:01:17]} fxg5 {[%emt 0:09:27]} 16. Nxe6 {[%emt 0:00:05]} Qb6 {[%emt 0:01:14]} 17. Nxg7 {[%emt 0:01:02]} Nxe5 {[%emt 0:01:17]} 18. Qd2 {[%emt 0:06:56]} Nc4 {[%emt 0:09:47]} 19. Qxg5 {[%emt 0:02:00]} Qc7 {[%emt 0:03:01]} 20. Qf4 {[%emt 0:07:05]} Qxf4 {[%emt 0:00:07]} 21. Rxf4 {[%emt 0:00:04]} Rdg8 {[%emt 0:00:04]} 22. Ne6 {[%emt 0:00:31]} Bf5 {[%emt 0:05:33]} 23. Nec5 {[%emt 0:04:06]} Ne3 {[%emt 0:00:29]} 24. Re1 {[%emt 0:07:11]} Nxc2 {[%emt 0:01:08]} 25. Ref1 {[%emt 0:03:14]} Ne3 {[%emt 0:00:08]} 26. R1f2 {[%emt 0:02:11]} Bxg4 {[%emt 0:03:41]} 27. Bxg4+ {[%emt 0:00:04]} Nxg4 {[%emt 0:00:05]} 28. Rg2 {[%emt 0:00:15]} Ne3 {[%emt 0:00:22]} 29. Rg3 {[%emt 0:02:17]} N7f5 {[%emt 0:03:08]} 30. Rxg8+ {[%emt 0:00:06]} Rxg8+ {[%emt 0:00:01]} 31. Kh1 {[%emt 0:00:30]} Rh8 {[%emt 0:00:32]} 32. Kg1 {[%emt 0:00:21]} Rh5 {[%emt 0:02:58]} 33. Nd3 {[%emt 0:00:56]} Rg5+ {[%emt 0:03:00]} 34. Kh1 {[%emt 0:00:12]} Rh5 {[%emt 0:04:24]} 35. Kg1 {[%emt 0:00:03]} Rg5+ {[%emt 0:00:03]} 36. Kh1 {[%emt 0:00:03]} Rh5 {[%emt 0:00:03]} 37. Kg1 {[%emt 0:00:54]} Rg5+ 1/2-1/2

[Event "69th RUS-ch Women Higher League 2019"]
[Site "Yaroslavl"]
[Date "2019.06.30"]
[Round "4.18"]
[White "Bulatova, Kamaliya"]
[Black "Tokmakova, Ulyana"]
[Result "1/2-1/2"]
[ECO "A45"]
[WhiteElo "2102"]
[BlackElo "1878"]
[Annotator "NA"]
[PlyCount "86"]
[EventDate "2019.06.27"]
[EventType "swiss"]
[EventCountry "RUS"]
[SourceTitle "playchess.com"]
[Source "ChessBase"]
[SourceQuality "1"]
[TimeControl "40/5400+30:1800+30"]

1. d4 {[%emt 0:00:00]} Nf6 {[%emt 0:00:00]} 2. Bf4 {[%emt 0:00:00]} e6 {[%emt 0:00:00]} 3. e3 {[%emt 0:00:00]} Be7 {[%emt 0:01:17]} 4. Nd2 {[%emt 0:00:13]} O-O {[%emt 0:00:27]} 5. Bd3 {[%emt 0:00:43]} c5 {[%emt 0:00:47]} 6. c3 {[%emt 0:00:28]} b6 {[%emt 0:03:07]} 7. Qe2 {[%emt 0:07:45]} Bb7 {[%emt 0:02:49]} 8. e4 {[%emt 0:01:39]} cxd4 {[%emt 0:03:33]} 9. cxd4 {[%emt 0:00:25]} Nc6 {[%emt 0:04:30]} 10. Ngf3 {[%emt 0:01:05]} Nb4 {[%emt 0:01:33]} 11. O-O {[%emt 0:03:02]} Nxd3 {[%emt 0:03:54]} 12. Qxd3 {[%emt 0:00:11]} d5 {[%emt 0:02:18]} 13. e5 Ne4 {[%emt 0:00:07]} 14. Rfc1 {[%emt 0:07:16]} Qd7 {[%emt 0:02:52]} 15. Ne1 {[%emt 0:01:53]} Nxd2 {[%emt 0:02:18]} 16. Bxd2 {[%emt 0:00:13]} Rfc8 {[%emt 0:01:54]} 17. Nc2 {[%emt 0:03:12]} a5 {[%emt 0:03:22]} 18. Qg3 {[%emt 0:01:58]} Rc6 {[%emt 0:03:43]} 19. Ne3 {[%emt 0:02:41]} Rac8 {[%emt 0:03:22]} 20. Re1 {[%emt 0:03:32]} Ba6 {[%emt 0:04:45]} 21. Ng4 {[%emt 0:01:49]} Kh8 {[%emt 0:02:32]} 22. Qf4 {[%emt 0:03:33]} Rc2 {[%emt 0:09:27]} 23. Bc3 {[%emt 0:05:56]} Bb4 {[%emt 0:00:31]} 24. Bxb4 {[%emt 0:03:18]} axb4 {[%emt 0:00:10]} 25. h4 {[%emt 0:00:11]} Be2 {[%emt 0:05:48]} 26. f3 {[%emt 0:06:43]} h5 {[%emt 0:11:10]} 27. Nf2 {[%emt 0:02:35]} Rxb2 {[%emt 0:02:08]} 28. Qg5 {[%emt 0:00:31]} Rcc2 {[%emt 0:01:42]} 29. Rac1 {[%emt 0:04:55]} Qc7 {[%emt 0:07:57]} 30. Qxh5+ {[%emt 0:01:37]} Kg8 {[%emt 0:00:03]} 31. Qg5 {[%emt 0:01:10]} Bb5 {[%emt 0:02:43]} 32. h5 {[%emt 0:01:30]} Qb8 {[%emt 0:02:14]} 33. Rxc2 {[%emt 0:00:28]} Rxc2 {[%emt 0:00:07]} 34. Ng4 {[%emt 0:00:16]} Qf8 {[%emt 0:01:10]} 35. h6 {[%emt 0:03:04]} g6 {[%emt 0:00:22]} 36. h7+ {[%emt 0:03:28]} Kh8 {[%emt 0:00:24]} 37. Kh2 {[%emt 0:01:25]} Rxa2 {[%emt 0:01:14]} 38. Kg3 {[%emt 0:00:48]} Ra8 {[%emt 0:00:22]} 39. Rb1 {[%emt 0:01:52]} Bd3 {[%emt 0:02:14]} 40. Rb3 {[%emt 0:00:00]} Bf5 {[%emt 0:00:00]} 41. Nf6 {[%emt 0:09:17]} Bc2 {[%emt 0:09:24]} 42. Rb2 {[%emt 0:08:06]} b3 {[%emt 0:00:50]} 43. Ng4 {[%emt 0:00:36]} Qg7 {[%emt 0:05:02]} 1/2-1/2

[Event "69th RUS-ch Women Higher League 2019"]
[Site "Yaroslavl"]
[Date "2019.06.30"]
[Round "4.19"]
[White "Mukhina, Jana"]
[Black "Dzutseva, Lana"]
[Result "1-0"]
[ECO "C63"]
[WhiteElo "2090"]
[BlackElo "1325"]
[Annotator "NA"]
[PlyCount "83"]
[EventDate "2019.06.27"]
[EventType "swiss"]
[EventCountry "RUS"]
[SourceTitle "playchess.com"]
[Source "ChessBase"]
[SourceQuality "1"]
[TimeControl "40/5400+30:1800+30"]

1. e4 {[%emt 0:00:00]} e5 {[%emt 0:00:00]} 2. Nf3 {[%emt 0:00:00]} Nc6 {[%emt 0:00:00]} 3. Bb5 {[%emt 0:00:23]} f5 {[%emt 0:00:09]} 4. Nc3 {[%emt 0:04:04]} fxe4 {[%emt 0:03:12]} 5. Nxe4 {[%emt 0:00:02]} d5 {[%emt 0:00:17]} 6. Nxe5 {[%emt 0:16:08]} dxe4 {[%emt 0:00:07]} 7. Qh5+ {[%emt 0:04:37]} g6 {[%emt 0:08:17]} 8. Nxg6 {[%emt 0:00:14]} Nf6 {[%emt 0:00:04]} 9. Bxc6+ {[%emt 0:05:35]} bxc6 {[%emt 0:07:49]} 10. Qe5+ {[%emt 0:00:19]} Kf7 {[%emt 0:00:27]} 11. Nxh8+ {[%emt 0:00:16]} Kg8 {[%emt 0:00:28]} 12. b3 {[%emt 0:12:28]} Bg7 {[%emt 0:10:49]} 13. Nf7 {[%emt 0:05:46]} Kxf7 {[%emt 0:01:05]} 14. Bb2 {[%emt 0:01:08]} Qe7 {[%emt 0:12:14]} 15. Qxe7+ {[%emt 0:01:22]} Kxe7 {[%emt 0:00:04]} 16. O-O-O {[%emt 0:00:39]} Bf5 {[%emt 0:01:53]} 17. Be5 {[%emt 0:19:42]} a5 {[%emt 0:22:37]} 18. a4 {[%emt 0:00:48]} Ra7 {[%emt 0:11:36]} 19. Rde1 {[%emt 0:01:12]} Ke6 {[%emt 0:01:22]} 20. Bd4 {[%emt 0:01:40]} Ra8 {[%emt 0:00:20]} 21. g4 {[%emt 0:10:15]} Bg6 {[%emt 0:03:31]} 22. f4 {[%emt 0:00:27]} Kd5 {[%emt 0:01:02]} 23. Bc3 {[%emt 0:01:37]} Ne8 {[%emt 0:03:06]} 24. f5 {[%emt 0:00:19]} Bf7 {[%emt 0:00:10]} 25. Bxg7 {[%emt 0:00:28]} Nxg7 {[%emt 0:00:01]} 26. d3 {[%emt 0:00:09]} exd3 {[%emt 0:01:29]} 27. Re7 {[%emt 0:00:35]} Rf8 {[%emt 0:00:21]} 28. Rd1 {[%emt 0:02:08]} Kd6 {[%emt 0:01:03]} 29. Re3 {[%emt 0:00:21]} h5 {[%emt 0:01:33]} 30. Rdxd3+ {[%emt 0:00:23]} Kc5 {[%emt 0:00:10]} 31. h3 {[%emt 0:02:31]} hxg4 {[%emt 0:00:08]} 32. hxg4 {[%emt 0:00:02]} Bg8 {[%emt 0:08:25]} 33. Re5+ {[%emt 0:01:24]} Kb6 {[%emt 0:00:18]} 34. Rd7 {[%emt 0:00:27]} Ne8 {[%emt 0:00:42]} 35. Rd8 {[%emt 0:00:10]} Bf7 {[%emt 0:00:09]} 36. Re7 {[%emt 0:00:55]} c5 {[%emt 0:01:49]} 37. c4 {[%emt 0:00:23]} Kc6 {[%emt 0:01:00]} 38. Kd2 {[%emt 0:01:03]} Kb6 {[%emt 0:00:25]} 39. Ke3 {[%emt 0:01:35]} Kc6 {[%emt 0:00:39]} 40. Kf4 {[%emt 0:00:00]} Kb6 {[%emt 0:00:00]} 41. Rxf7 {[%emt 0:01:19]} Rxf7 {[%emt 0:00:41]} 42. Rxe8 {[%emt 0:00:02]} 1-0

[Event "69th RUS-ch Women Higher League 2019"]
[Site "Yaroslavl"]
[Date "2019.06.30"]
[Round "4.20"]
[White "Loskutova, Viktoriya"]
[Black "Faizutdinova, Diana"]
[Result "1/2-1/2"]
[ECO "B01"]
[WhiteElo "2019"]
[BlackElo "2061"]
[Annotator "NA"]
[PlyCount "70"]
[EventDate "2019.06.27"]
[EventType "swiss"]
[EventCountry "RUS"]
[SourceTitle "playchess.com"]
[Source "ChessBase"]
[SourceQuality "1"]
[TimeControl "40/5400+30:1800+30"]

1. e4 {[%emt 0:00:00]} d5 {[%emt 0:00:00]} 2. exd5 {[%emt 0:00:00]} Qxd5 {[%emt 0:00:00]} 3. Nc3 {[%emt 0:00:00]} Qd8 {[%emt 0:00:00]} 4. d4 {[%emt 0:00:24]} Nf6 {[%emt 0:00:10]} 5. Nf3 {[%emt 0:02:09]} Bg4 {[%emt 0:00:15]} 6. Be2 {[%emt 0:02:47]} c6 {[%emt 0:00:31]} 7. Ne5 {[%emt 0:05:21]} Bxe2 {[%emt 0:01:32]} 8. Nxe2 {[%emt 0:00:06]} Nbd7 {[%emt 0:06:18]} 9. Nf3 {[%emt 0:09:40]} e6 {[%emt 0:03:51]} 10. O-O {[%emt 0:05:39]} Bd6 {[%emt 0:05:21]} 11. Bf4 {[%emt 0:08:04]} Qc7 {[%emt 0:06:07]} 12. Qc1 {[%emt 0:06:01]} O-O {[%emt 0:08:11]} 13. Rd1 {[%emt 0:06:36]} Bxf4 {[%emt 0:07:10]} 14. Qxf4 {[%emt 0:03:06]} Qxf4 {[%emt 0:00:20]} 15. Nxf4 {[%emt 0:00:02]} a5 {[%emt 0:05:44]} 16. Nd3 {[%emt 0:12:40]} Rfd8 {[%emt 0:23:37]} 17. Nfe5 {[%emt 0:11:59]} h6 {[%emt 0:02:37]} 18. Kf1 {[%emt 0:07:26]} g5 {[%emt 0:06:28]} 19. a4 {[%emt 0:05:39]} Kg7 {[%emt 0:05:59]} 20. Nc4 {[%emt 0:01:29]} Nd5 {[%emt 0:01:16]} 21. c3 {[%emt 0:02:38]} b6 {[%emt 0:02:48]} 22. Nde5 {[%emt 0:01:48]} Nxe5 {[%emt 0:00:58]} 23. Nxe5 {[%emt 0:02:14]} Rdc8 {[%emt 0:01:40]} 24. g3 {[%emt 0:03:05]} b5 {[%emt 0:02:27]} 25. Nd7 {[%emt 0:01:23]} Ra7 {[%emt 0:02:09]} 26. Nc5 {[%emt 0:00:15]} b4 {[%emt 0:00:32]} 27. c4 {[%emt 0:00:33]} Nb6 {[%emt 0:01:01]} 28. b3 {[%emt 0:00:07]} Nd7 {[%emt 0:00:43]} 29. Nd3 {[%emt 0:00:46]} Rd8 {[%emt 0:01:34]} 30. Ke2 {[%emt 0:00:09]} Rc7 {[%emt 0:01:09]} 31. h3 {[%emt 0:00:58]} Nf6 {[%emt 0:00:28]} 32. Nc5 {[%emt 0:00:05]} Nd7 {[%emt 0:00:58]} 33. Nd3 {[%emt 0:00:39]} Nf6 {[%emt 0:00:47]} 34. Nc5 {[%emt 0:00:10]} Nd7 {[%emt 0:00:15]} 35. Nd3 {[%emt 0:00:06]} Nf6 {[%emt 0:00:04]} 1/2-1/2